fUST/lending_fUST_20240705
["ID","MTS","AMOUNT","RATE_DAILY","PERIOD"]
[331213253,1720135849576,-500.0,0.00015342,2]
[331213254,1720135849586,-500.0,0.00015342,2]
[331213255,1720135849595,-500.0,0.00015342,2]
[331213256,1720135849606,-500.0,0.00015342,2]
[331213257,1720135849616,-500.0,0.00015342,2]
[331213258,1720135849627,-2411.42,0.00015342,2]
[331213259,1720135849638,-500.0,0.00015342,2]
[331213260,1720135849649,-500.0,0.00015342,2]
[331213261,1720135849659,-584.16,0.00015342,2]
[331213262,1720135849670,-500.0,0.00015342,2]
[331213263,1720135849680,-500.0,0.00015342,2]
[331213264,1720135849690,-500.0,0.00015342,2]
[331213265,1720135849699,-500.0,0.00015342,2]
[331213266,1720135849708,-400.0,0.00015342,2]
[331213267,1720135849718,-500.0,0.00015342,2]
[331213268,1720135849728,-500.0,0.00015342,2]
[331213269,1720135849738,-500.0,0.00015342,2]
[331213270,1720135849747,-500.0,0.00015342,2]
[331213271,1720135849757,-500.0,0.00015342,2]
[331213272,1720135849767,-500.0,0.00015342,2]
[331213273,1720135849776,-500.0,0.00015342,2]
[331213274,1720135849786,-500.0,0.00015342,2]
[331213275,1720135849795,-527.17494865,0.00015342,2]
[331213276,1720135849805,-751.77,0.00015342,2]
[331213277,1720135849815,-500.0,0.00015342,2]
[331213278,1720135849824,-500.0,0.00015342,2]
[331213279,1720135849834,-500.0,0.00015342,2]
[331213280,1720135849843,-500.0,0.00015342,2]
[331213281,1720135849856,-500.0,0.00015342,2]
[331213282,1720135849866,-283.6,0.00015342,2]
[331213283,1720135849876,-500.0,0.00015342,2]
[331213284,1720135849886,-500.0,0.00015342,2]
[331213285,1720135849895,-500.0,0.00015342,2]
[331213286,1720135849905,-569.06,0.00015342,2]
[331213287,1720135849915,-500.0,0.00015342,2]
[331213288,1720135849925,-500.0,0.00015342,2]
[331213289,1720135849936,-500.0,0.00015342,2]
[331213290,1720135849946,-726.17,0.00015342,2]
[331213291,1720135849956,-500.0,0.00015342,2]
[331213292,1720135849966,-500.0,0.00015342,2]
[331213293,1720135849980,-500.0,0.00015342,2]
[331213294,1720135849989,-500.0,0.00015342,2]
[331213295,1720135849999,-2140.17,0.00015342,2]
[331213296,1720135850009,-500.0,0.00015342,2]
[331213297,1720135850019,-1431.01,0.00015342,2]
[331213298,1720135850028,-500.0,0.00015342,2]
[331213299,1720135850037,-316.1147738,0.00015342,2]
[331213300,1720135850047,-500.0,0.00015342,2]
[331213301,1720135850057,-1019.4,0.00015342,2]
[331213302,1720135850070,-500.0,0.00015342,2]
[331213303,1720135850079,-500.0,0.00015342,2]
[331213304,1720135850088,-294.3,0.00015342,2]
[331213305,1720135850098,-500.0,0.00015342,2]
[331213306,1720135850111,-4364.82,0.00015342,2]
[331213307,1720135850120,-500.0,0.00015342,2]
[331213310,1720135850238,-5426.46,0.00015342,2]
[331213312,1720135850247,-2322.23,0.00015342,2]
[331213313,1720135850257,-500.0,0.00015342,2]
[331213314,1720135850266,-500.0,0.00015342,2]
[331213315,1720135850276,-591.25,0.00015342,2]
[331213316,1720135850285,-525.01487892,0.00015357,2]
[331213317,1720135850295,-500.0,0.00015615,2]
[331213318,1720135850305,-1026.04,0.00015615,2]
[331213319,1720135850314,-734.64,0.00015616,2]
[331213320,1720135850325,-734.64,0.00015616,2]
[331213321,1720135850334,-500.0,0.00015616,2]
[331213322,1720135850344,-500.0,0.00015616,2]
[331213323,1720135850356,-500.0,0.00015616,2]
[331213324,1720135850366,-500.0,0.00015616,2]
[331213325,1720135850375,-500.0,0.00015616,2]
[331213326,1720135850385,-500.0,0.00015616,2]
[331213327,1720135850394,-500.0,0.00015616,2]
[331213328,1720135850404,-2411.42,0.00015616,2]
[331213329,1720135850413,-566.22,0.00015616,2]
[331213330,1720135850422,-500.0,0.00015616,2]
[331213331,1720135850431,-584.16,0.00015616,2]
[331213332,1720135850441,-500.0,0.00015616,2]
[331213333,1720135850450,-500.0,0.00015616,2]
[331213334,1720135850460,-320.61,0.00015616,2]
[331213335,1720135850469,-500.0,0.00015616,2]
[331213336,1720135850479,-500.0,0.00015616,2]
[331213337,1720135850489,-610.10578086,0.00015616,2]
[331213338,1720135850499,-500.0,0.00015616,2]
[331213339,1720135850509,-500.0,0.00015616,2]
[331213340,1720135850519,-500.0,0.00015616,2]
[331213341,1720135850528,-253.46172782,0.00015616,2]
[331213342,1720135850537,-500.0,0.00015616,2]
[331213343,1720135850547,-751.77,0.00015616,2]
[331213344,1720135850557,-500.0,0.00015616,2]
[331213345,1720135850567,-500.0,0.00015616,2]
[331213346,1720135850576,-500.0,0.00015616,2]
[331213347,1720135850586,-500.0,0.00015616,2]
[331213348,1720135850595,-500.0,0.00015616,2]
[331213349,1720135850607,-500.0,0.00015616,2]
[331213350,1720135850616,-500.0,0.00015616,2]
[331213351,1720135850625,-335.35603896,0.00015616,2]
[331213352,1720135850635,-319.47,0.00015616,2]
[331213353,1720135850644,-500.0,0.00015616,2]
[331213354,1720135850654,-500.0,0.00015616,2]
[331213356,1720135850663,-726.17,0.00015616,2]
[331213358,1720135850672,-500.0,0.00015616,2]
[331213360,1720135850681,-500.0,0.00015616,2]
[331213362,1720135850691,-500.0,0.00015616,2]
[331213363,1720135850700,-2140.17,0.00015616,2]
[331213364,1720135850710,-500.0,0.00015616,2]
[331213365,1720135850719,-1431.01,0.00015616,2]
[331213366,1720135850729,-500.0,0.00015616,2]
[331213367,1720135850738,-500.0,0.00015616,2]
[331213368,1720135850747,-1019.4,0.00015616,2]
[331213369,1720135850757,-500.0,0.00015616,2]
[331213370,1720135850766,-500.0,0.00015616,2]
[331213371,1720135850775,-4364.82,0.00015616,2]
[331213372,1720135850785,-500.0,0.00015616,2]
[331213373,1720135850794,-5426.46,0.00015616,2]
[331213374,1720135850804,-2322.23,0.00015616,2]
[331213375,1720135850813,-500.0,0.00015616,2]
[331213376,1720135850822,-500.0,0.00015616,2]
[331213377,1720135850831,-591.25,0.00015616,2]
[331213378,1720135850841,-400.15,0.00015889,2]
[331213379,1720135850850,-1026.04,0.00015889,2]
[331213380,1720135850860,-734.64,0.0001589,2]
[331213381,1720135850870,-734.64,0.0001589,2]
[331213382,1720135850881,-500.0,0.0001589,2]
[331213383,1720135850890,-500.0,0.0001589,2]
[331213384,1720135850900,-541.08422283,0.0001589,2]
[331213385,1720135850910,-500.0,0.0001589,2]
[331213386,1720135850919,-500.0,0.0001589,2]
[331213387,1720135850929,-500.0,0.0001589,2]
[331213388,1720135850938,-500.0,0.0001589,2]
[331213389,1720135850948,-2411.42,0.0001589,2]
[331213390,1720135850958,-500.0,0.0001589,2]
[331213391,1720135850968,-584.16,0.0001589,2]
[331213392,1720135850978,-500.0,0.0001589,2]
[331213393,1720135850992,-500.0,0.0001589,2]
[331213394,1720135851002,-500.0,0.0001589,2]
[331213395,1720135851011,-500.0,0.0001589,2]
[331213396,1720135851021,-500.0,0.0001589,2]
[331213397,1720135851031,-500.0,0.0001589,2]
[331213398,1720135851041,-751.77,0.0001589,2]
[331213399,1720135851050,-500.0,0.0001589,2]
[331213400,1720135851060,-500.0,0.0001589,2]
[331213401,1720135851073,-500.0,0.0001589,2]
[331213402,1720135851083,-500.0,0.0001589,2]
[331213403,1720135851094,-500.0,0.0001589,2]
[331213404,1720135851103,-500.0,0.0001589,2]
[331213405,1720135851113,-500.0,0.0001589,2]
[331213406,1720135851123,-500.0,0.0001589,2]
[331213407,1720135851132,-726.17,0.0001589,2]
[331213408,1720135851142,-500.0,0.0001589,2]
[331213409,1720135851152,-500.0,0.0001589,2]
[331213410,1720135851162,-500.0,0.0001589,2]
[331213411,1720135851172,-2140.17,0.0001589,2]
[331213412,1720135851181,-500.0,0.0001589,2]
[331213413,1720135851190,-1431.01,0.0001589,2]
[331213414,1720135851199,-500.0,0.0001589,2]
[331213415,1720135851209,-500.0,0.0001589,2]
[331213416,1720135851218,-1019.4,0.0001589,2]
[331213417,1720135851228,-500.0,0.0001589,2]
[331213418,1720135851238,-500.0,0.0001589,2]
[331213419,1720135851248,-4364.82,0.0001589,2]
[331213420,1720135851258,-500.0,0.0001589,2]
[331213421,1720135851267,-5426.46,0.0001589,2]
[331213422,1720135851277,-2322.23,0.0001589,2]
[331213423,1720135851286,-500.0,0.0001589,2]
[331213424,1720135851295,-591.25,0.0001589,2]
[331213425,1720135851305,-500.0,0.0001589,2]
[331213426,1720135851315,-174.096833,0.00016036,2]
[331213427,1720135851324,-186.615069,0.00016036,2]
[331213428,1720135851334,-174.096832,0.00016036,2]
[331213429,1720135851344,-1026.04,0.00016163,2]
[331213430,1720135851355,-734.64,0.00016164,2]
[331213431,1720135851365,-734.64,0.00016164,2]
[331213432,1720135851374,-500.0,0.00016164,2]
[331213433,1720135851384,-500.0,0.00016164,2]
[331213434,1720135851393,-500.0,0.00016164,2]
[331213435,1720135851405,-500.0,0.00016164,2]
[331213436,1720135851415,-500.0,0.00016164,2]
[331213437,1720135851424,-500.0,0.00016164,2]
[331213438,1720135851434,-2411.42,0.00016164,2]
[331213439,1720135851444,-500.0,0.00016164,2]
[331213440,1720135851453,-584.16,0.00016164,2]
[331213441,1720135851463,-500.0,0.00016164,2]
[331213442,1720135851472,-500.0,0.00016164,2]
[331213443,1720135851481,-562.04,0.00016164,2]
[331213444,1720135851491,-500.0,0.00016164,2]
[331213445,1720135851500,-500.0,0.00016164,2]
[331213446,1720135851510,-500.0,0.00016164,2]
[331213447,1720135851519,-751.77,0.00016164,2]
[331213448,1720135851529,-500.0,0.00016164,2]
[331213449,1720135851539,-500.0,0.00016164,2]
[331213450,1720135851548,-500.0,0.00016164,2]
[331213451,1720135851557,-500.0,0.00016164,2]
[331213452,1720135851566,-500.0,0.00016164,2]
[331213453,1720135851576,-726.17,0.00016164,2]
[331213454,1720135851586,-500.0,0.00016164,2]
[331213455,1720135851596,-500.0,0.00016164,2]
[331213456,1720135851608,-500.0,0.00016164,2]
[331213457,1720135851618,-2140.17,0.00016164,2]
[331213458,1720135851627,-500.0,0.00016164,2]
[331213459,1720135851637,-1431.01,0.00016164,2]
[331213460,1720135851646,-500.0,0.00016164,2]
[331213461,1720135851655,-500.0,0.00016164,2]
[331213462,1720135851665,-1019.4,0.00016164,2]
[331213463,1720135851675,-500.0,0.00016164,2]
[331213464,1720135851684,-4364.82,0.00016164,2]
[331213465,1720135851694,-500.0,0.00016164,2]
[331213466,1720135851704,-5426.46,0.00016164,2]
[331213467,1720135851714,-2322.23,0.00016164,2]
[331213468,1720135851723,-500.0,0.00016164,2]
[331213469,1720135851733,-591.25,0.00016164,2]
[331213470,1720135851743,-500.0,0.00016164,2]
[331213471,1720135851753,-57212.27342122,0.00016254,2]
[331213472,1720135851763,-42225.49623484,0.00016255,2]
[331213473,1720135851772,-17247.35351992,0.00016255,2]
[331213474,1720135851783,-18454.02720497,0.00016255,2]
[331213475,1720135851792,-30000.0,0.00016255,2]
[331213476,1720135851802,-13400.66781357,0.00016255,2]
[331213477,1720135851812,-4710.72024946,0.00016255,2]
[331213478,1720135851821,-150.0,0.00016281,2]
[331213479,1720135851831,-1026.04,0.00016437,2]
[331213480,1720135851840,-734.64,0.00016438,2]
[331213481,1720135851850,-734.64,0.00016438,2]
[331213482,1720135851862,-500.0,0.00016438,2]
[331213483,1720135851872,-500.0,0.00016438,2]
[331213484,1720135851882,-500.0,0.00016438,2]
[331213485,1720135851893,-500.0,0.00016438,2]
[331213486,1720135851902,-500.0,0.00016438,2]
[331213487,1720135851913,-351.43,0.00016438,2]
[331213488,1720135851924,-2411.42,0.00016438,2]
[331213489,1720135851934,-500.0,0.00016438,2]
[331213490,1720135851944,-584.16,0.00016438,2]
[331213491,1720135851954,-500.0,0.00016438,2]
[331213492,1720135851964,-500.0,0.00016438,2]
[331213493,1720135851975,-500.0,0.00016438,2]
[331213494,1720135851988,-500.0,0.00016438,2]
[331213495,1720135851997,-500.0,0.00016438,2]
[331213496,1720135852007,-751.77,0.00016438,2]
[331213497,1720135852019,-500.0,0.00016438,2]
[331213498,1720135852029,-500.0,0.00016438,2]
[331213499,1720135852039,-500.0,0.00016438,2]
[331213500,1720135852048,-574.15097537,0.00016438,2]
[331213501,1720135852058,-500.0,0.00016438,2]
[331213502,1720135852070,-726.17,0.00016438,2]
[331213503,1720135852080,-500.0,0.00016438,2]
[331213504,1720135852090,-500.0,0.00016438,2]
[331213505,1720135852100,-2140.17,0.00016438,2]
[331213506,1720135852116,-500.0,0.00016438,2]
[331213507,1720135852126,-1431.01,0.00016438,2]
[331213508,1720135852136,-500.0,0.00016438,2]
[331213509,1720135852146,-500.0,0.00016438,2]
[331213510,1720135852158,-1019.4,0.00016438,2]
[331213511,1720135852167,-500.0,0.00016438,2]
[331213512,1720135852177,-4364.82,0.00016438,2]
[331213513,1720135852187,-500.0,0.00016438,2]
[331213514,1720135852197,-5426.46,0.00016438,2]
[331213515,1720135852206,-2322.23,0.00016438,2]
[331213516,1720135852216,-500.0,0.00016438,2]
[331213517,1720135852227,-591.25,0.00016438,2]
[331213518,1720135852237,-166.666666,0.00016438,2]
[331213519,1720135852246,-1026.04,0.00016711,2]
[331213520,1720135852256,-734.64,0.00016712,2]
[331213521,1720135852266,-734.64,0.00016712,2]
[331213522,1720135852275,-500.0,0.00016712,2]
[331213523,1720135852285,-500.0,0.00016712,2]
[331213524,1720135852295,-500.0,0.00016712,2]
[331213525,1720135852304,-487.75,0.00016712,2]
[331213526,1720135852313,-500.0,0.00016712,2]
[331213527,1720135852323,-2411.42,0.00016712,2]
[331213528,1720135852332,-500.0,0.00016712,2]
[331213529,1720135852342,-584.16,0.00016712,2]
[331213530,1720135852351,-500.0,0.00016712,2]
[331213531,1720135852364,-500.0,0.00016712,2]
[331213532,1720135852374,-500.0,0.00016712,2]
[331213533,1720135852383,-422.62577396,0.00016712,2]
[331213534,1720135852393,-500.0,0.00016712,2]
[331213535,1720135852402,-751.77,0.00016712,2]
[331213536,1720135852412,-198.21,0.00016712,2]
[331213537,1720135852422,-500.0,0.00016712,2]
[331213538,1720135852432,-500.0,0.00016712,2]
[331213539,1720135852442,-500.0,0.00016712,2]
[331213540,1720135852452,-726.17,0.00016712,2]
[331213541,1720135852461,-500.0,0.00016712,2]
[331213542,1720135852471,-500.0,0.00016712,2]
[331213543,1720135852481,-2140.17,0.00016712,2]
[331213544,1720135852491,-500.0,0.00016712,2]
[331213545,1720135852501,-1431.01,0.00016712,2]
[331213546,1720135852511,-500.0,0.00016712,2]
[331213547,1720135852521,-500.0,0.00016712,2]
[331213548,1720135852531,-1019.4,0.00016712,2]
[331213549,1720135852540,-500.0,0.00016712,2]
[331213550,1720135852550,-4364.82,0.00016712,2]
[331213551,1720135852559,-500.0,0.00016712,2]
[331213552,1720135852569,-5426.46,0.00016712,2]
[331213553,1720135852578,-2322.23,0.00016712,2]
[331213554,1720135852588,-387.13,0.00016712,2]
[331213555,1720135852598,-591.25,0.00016712,2]
[331213556,1720135852614,-530.55105603,0.00016806,2]
[331213557,1720135852623,-166.666666,0.00016823,2]
[331213558,1720135852633,-250.0,0.00016829,2]
[331213559,1720135852642,-1026.04,0.00016985,2]
[331213560,1720135852652,-734.64,0.00016986,2]
[331213561,1720135852661,-734.64,0.00016986,2]
[331213562,1720135852697,-500.0,0.00016986,2]
[331213563,1720135852707,-500.0,0.00016986,2]
[331213564,1720135852716,-500.0,0.00016986,2]
[331213565,1720135852725,-500.0,0.00016986,2]
[331213566,1720135852736,-2411.42,0.00016986,2]
[331213567,1720135852746,-500.0,0.00016986,2]
[331213568,1720135852756,-584.16,0.00016986,2]
[331213569,1720135852766,-500.0,0.00016986,2]
[331213570,1720135852775,-500.0,0.00016986,2]
[331213571,1720135852785,-500.0,0.00016986,2]
[331213572,1720135852794,-500.0,0.00016986,2]
[331213573,1720135852804,-751.77,0.00016986,2]
[331213574,1720135852814,-500.0,0.00016986,2]
[331213575,1720135852824,-299.1,0.00016986,2]
[331213576,1720135852833,-500.0,0.00016986,2]
[331213577,1720135852843,-726.17,0.00016986,2]
[331213578,1720135852852,-500.0,0.00016986,2]
[331213579,1720135852862,-500.0,0.00016986,2]
[331213580,1720135852872,-2140.17,0.00016986,2]
[331213581,1720135852885,-500.0,0.00016986,2]
[331213582,1720135852897,-1431.01,0.00016986,2]
[331213583,1720135852906,-500.0,0.00016986,2]
[331213584,1720135852916,-500.0,0.00016986,2]
[331213585,1720135852927,-1019.4,0.00016986,2]
[331213586,1720135852936,-500.0,0.00016986,2]
[331213587,1720135852945,-4364.82,0.00016986,2]
[331213588,1720135852955,-500.0,0.00016986,2]
[331213589,1720135852964,-5426.46,0.00016986,2]
[331213590,1720135852976,-2322.23,0.00016986,2]
[331213591,1720135852987,-591.25,0.00016986,2]
[331213592,1720135852996,-166.666666,0.00017208,2]
[331213593,1720135853006,-1026.04,0.00017259,2]
[331213594,1720135853016,-734.64,0.0001726,2]
[331213595,1720135853026,-734.64,0.0001726,2]
[331213596,1720135853035,-500.0,0.0001726,2]
[331213597,1720135853045,-500.0,0.0001726,2]
[331213598,1720135853058,-500.0,0.0001726,2]
[331213599,1720135853069,-500.0,0.0001726,2]
[331213600,1720135853078,-2411.42,0.0001726,2]
[331213601,1720135853088,-625.22,0.0001726,2]
[331213602,1720135853097,-584.16,0.0001726,2]
[331213603,1720135853108,-500.0,0.0001726,2]
[331213604,1720135853118,-500.0,0.0001726,2]
[331213605,1720135853127,-500.0,0.0001726,2]
[331213606,1720135853137,-500.0,0.0001726,2]
[331213607,1720135853147,-751.77,0.0001726,2]
[331213608,1720135853157,-500.0,0.0001726,2]
[331213609,1720135853166,-500.0,0.0001726,2]
[331213610,1720135853176,-726.17,0.0001726,2]
[331213611,1720135853185,-500.0,0.0001726,2]
[331213612,1720135853195,-427.19,0.0001726,2]
[331213613,1720135853205,-2140.17,0.0001726,2]
[331213614,1720135853215,-500.0,0.0001726,2]
[331213615,1720135853224,-1431.01,0.0001726,2]
[331213616,1720135853234,-500.0,0.0001726,2]
[331213617,1720135853244,-500.0,0.0001726,2]
[331213618,1720135853254,-1019.4,0.0001726,2]
[331213619,1720135853264,-500.0,0.0001726,2]
[331213620,1720135853275,-4364.82,0.0001726,2]
[331213621,1720135853284,-500.0,0.0001726,2]
[331213622,1720135853294,-5426.46,0.0001726,2]
[331213623,1720135853304,-2322.23,0.0001726,2]
[331213624,1720135853313,-591.25,0.0001726,2]
[331213625,1720135853324,-350.0,0.00017377,2]
[331213626,1720135853334,-1026.04,0.00017533,2]
[331213627,1720135853344,-734.64,0.00017534,2]
[331213628,1720135853355,-734.64,0.00017534,2]
[331213629,1720135853367,-500.0,0.00017534,2]
[331213630,1720135853376,-500.0,0.00017534,2]
[331213631,1720135853386,-500.0,0.00017534,2]
[331213632,1720135853395,-500.0,0.00017534,2]
[331213633,1720135853404,-2411.42,0.00017534,2]
[331213634,1720135853414,-500.0,0.00017534,2]
[331213635,1720135853423,-584.16,0.00017534,2]
[331213636,1720135853433,-500.0,0.00017534,2]
[331213637,1720135853442,-500.0,0.00017534,2]
[331213638,1720135853451,-751.77,0.00017534,2]
[331213639,1720135853461,-372.55,0.00017534,2]
[331213640,1720135853471,-500.0,0.00017534,2]
[331213641,1720135853481,-726.17,0.00017534,2]
[331213642,1720135853490,-500.0,0.00017534,2]
[331213643,1720135853499,-2140.17,0.00017534,2]
[331213644,1720135853509,-500.0,0.00017534,2]
[331213645,1720135853519,-1431.01,0.00017534,2]
[331213646,1720135853529,-500.0,0.00017534,2]
[331213647,1720135853538,-500.0,0.00017534,2]
[331213648,1720135853547,-1019.4,0.00017534,2]
[331213649,1720135853557,-500.0,0.00017534,2]
[331213650,1720135853567,-4364.82,0.00017534,2]
[331213651,1720135853577,-500.0,0.00017534,2]
[331213652,1720135853587,-5426.46,0.00017534,2]
[331213653,1720135853596,-2322.23,0.00017534,2]
[331213654,1720135853608,-591.25,0.00017534,2]
[331213655,1720135853617,-166.666666,0.00017592,2]
[331213656,1720135853627,-1026.04,0.00017807,2]
[331213657,1720135853636,-500.0,0.00017808,2]
[331213658,1720135853645,-182.59198231,0.00017808,2]
[331213659,1720135853655,-500.0,0.00017808,2]
[331213660,1720135853665,-500.0,0.00017808,2]
[331213661,1720135853675,-2411.42,0.00017808,2]
[331213662,1720135853684,-500.0,0.00017808,2]
[331213663,1720135853694,-584.16,0.00017808,2]
[331213664,1720135853704,-500.0,0.00017808,2]
[331213665,1720135853714,-500.0,0.00017808,2]
[331213666,1720135853723,-751.77,0.00017808,2]
[331213667,1720135853732,-500.0,0.00017808,2]
[331213668,1720135853742,-726.17,0.00017808,2]
[331213669,1720135853752,-500.0,0.00017808,2]
[331213670,1720135853762,-2140.17,0.00017808,2]
[331213671,1720135853772,-500.0,0.00017808,2]
[331213672,1720135853782,-1431.01,0.00017808,2]
[331213673,1720135853791,-500.0,0.00017808,2]
[331213674,1720135853801,-500.0,0.00017808,2]
[331213675,1720135853811,-1019.4,0.00017808,2]
[331213676,1720135853820,-500.0,0.00017808,2]
[331213677,1720135853830,-4364.82,0.00017808,2]
[331213678,1720135853840,-345.85,0.00017808,2]
[331213679,1720135853850,-5426.46,0.00017808,2]
[331213680,1720135853864,-2322.23,0.00017808,2]
[331213681,1720135853875,-591.25,0.00017808,2]
[331213682,1720135853886,-370.92099788,0.00017925,2]
[331213683,1720135853896,-166.666666,0.00017977,2]
[331213684,1720135853906,-204.83768925,0.00018,2]
[331213685,1720135853915,-1026.04,0.00018081,2]
[331213686,1720135853925,-500.0,0.00018082,2]
[331213687,1720135853936,-500.0,0.00018082,2]
[331213688,1720135853946,-500.0,0.00018082,2]
[331213689,1720135853955,-2411.42,0.00018082,2]
[331213690,1720135853965,-500.0,0.00018082,2]
[331213691,1720135853976,-584.16,0.00018082,2]
[331213692,1720135853987,-500.0,0.00018082,2]
[331213693,1720135853998,-500.0,0.00018082,2]
[331213694,1720135854008,-751.77,0.00018082,2]
[331213695,1720135854019,-438.71500568,0.00018082,2]
[331213696,1720135854029,-726.17,0.00018082,2]
[331213697,1720135854039,-500.0,0.00018082,2]
[331213698,1720135854049,-2140.17,0.00018082,2]
[331213699,1720135854059,-500.0,0.00018082,2]
[331213700,1720135854070,-1431.01,0.00018082,2]
[331213701,1720135854080,-500.0,0.00018082,2]
[331213702,1720135854089,-500.0,0.00018082,2]
[331213703,1720135854099,-1019.4,0.00018082,2]
[331213704,1720135854111,-599.92,0.00018082,2]
[331213705,1720135854120,-4364.82,0.00018082,2]
[331213706,1720135854130,-5426.46,0.00018082,2]
[331213707,1720135854139,-2322.23,0.00018082,2]
[331213708,1720135854149,-591.25,0.00018082,2]
[331213709,1720135854159,-153.0,0.00018193,2]
[331213710,1720135854169,-1026.04,0.00018355,2]
[331213711,1720135854179,-500.0,0.00018356,2]
[331213712,1720135854189,-500.0,0.00018356,2]
[331213713,1720135854198,-500.0,0.00018356,2]
[331213714,1720135854208,-2411.42,0.00018356,2]
[331213715,1720135854218,-500.0,0.00018356,2]
[331213716,1720135854228,-584.16,0.00018356,2]
[331213717,1720135854237,-500.0,0.00018356,2]
[331213718,1720135854247,-500.0,0.00018356,2]
[331213719,1720135854256,-751.77,0.00018356,2]
[331213720,1720135854266,-726.17,0.00018356,2]
[331213721,1720135854275,-500.0,0.00018356,2]
[331213722,1720135854284,-2140.17,0.00018356,2]
[331213723,1720135854293,-500.0,0.00018356,2]
[331213724,1720135854302,-1431.01,0.00018356,2]
[331213725,1720135854311,-500.0,0.00018356,2]
[331213726,1720135854320,-500.0,0.00018356,2]
[331213727,1720135854328,-1019.4,0.00018356,2]
[331213728,1720135854337,-4364.82,0.00018356,2]
[331213729,1720135854345,-5426.46,0.00018356,2]
[331213730,1720135854355,-2322.23,0.00018356,2]
[331213731,1720135854364,-591.25,0.00018356,2]
[331213732,1720135854374,-166.666666,0.00018362,2]
[331213733,1720135854383,-1026.04,0.00018629,2]
[331213734,1720135854391,-500.0,0.0001863,2]
[331213735,1720135854400,-421.71197146,0.0001863,2]
[331213736,1720135854408,-500.0,0.0001863,2]
[331213737,1720135854417,-2411.42,0.0001863,2]
[331213738,1720135854426,-560.93,0.0001863,2]
[331213739,1720135854434,-584.16,0.0001863,2]
[331213740,1720135854444,-500.0,0.0001863,2]
[331213741,1720135854453,-500.0,0.0001863,2]
[331213742,1720135854462,-751.77,0.0001863,2]
[331213743,1720135854472,-726.17,0.0001863,2]
[331213744,1720135854482,-500.0,0.0001863,2]
[331213745,1720135854491,-2140.17,0.0001863,2]
[331213746,1720135854501,-300.4,0.0001863,2]
[331213747,1720135854511,-1431.01,0.0001863,2]
[331213748,1720135854520,-500.0,0.0001863,2]
[331213749,1720135854530,-500.0,0.0001863,2]
[331213750,1720135854540,-1019.4,0.0001863,2]
[331213751,1720135854549,-4364.82,0.0001863,2]
[331213752,1720135854558,-5426.46,0.0001863,2]
[331213753,1720135854568,-2322.23,0.0001863,2]
[331213754,1720135854577,-591.25,0.0001863,2]
[331213755,1720135854587,-1026.04,0.00018903,2]
[331213756,1720135854596,-500.0,0.00018904,2]
[331213757,1720135854605,-282.00942261,0.00018904,2]
[331213758,1720135854616,-2411.42,0.00018904,2]
[331213759,1720135854626,-584.16,0.00018904,2]